[Event "*** Titled Tuesday Blitz"]
[Site "Chess.com"]
[Date "2018.08.07"]
[Round "10"]
[White "jk13"]
[Black "BlackBoarder"]
[Result "1-0"]
[WhiteElo "2542"]
[BlackElo "2376"]
[TimeControl "180+2"]
[EndTime "15:23:29 PDT"]
[Termination "jk13 won by resignation"]

1. e4 {[%clk 0:03:01.9]} 1... e6 {[%clk 0:03:00.3]} 2. d4 {[%clk 0:03:01.9]}
2... d5 {[%clk 0:03:01.5]} 3. Nd2 {[%clk 0:03:02.8]} 3... c5 {[%clk 0:03:02.2]}
4. exd5 {[%clk 0:03:03.5]} 4... Qxd5 {[%clk 0:03:04.1]} 5. Ngf3 {[%clk
0:03:04.4]} 5... cxd4 {[%clk 0:03:05.4]} 6. Bc4 {[%clk 0:03:06.3]} 6... Qd6
{[%clk 0:03:06.7]} 7. O-O {[%clk 0:03:07.9]} 7... Nf6 {[%clk 0:03:08.1]} 8. Nb3
{[%clk 0:03:09.6]} 8... Nc6 {[%clk 0:03:09.6]} 9. Nbxd4 {[%clk 0:03:11.2]} 9...
Nxd4 {[%clk 0:03:10.9]} 10. Nxd4 {[%clk 0:03:13.1]} 10... a6 {[%clk 0:03:12.2]}
11. c3 {[%clk 0:03:14.1]} 11... Qc7 {[%clk 0:03:13.6]} 12. Bb3 {[%clk
0:03:15.5]} 12... Bd6 {[%clk 0:03:14.8]} 13. h3 {[%clk 0:03:15.8]} 13... Bd7
{[%clk 0:03:15.9]} 14. Qf3 {[%clk 0:03:16.3]} 14... O-O-O {[%clk 0:03:17.1]} 15.
Bg5 {[%clk 0:03:15]} 15... Be5 {[%clk 0:03:17.2]} 16. Rad1 {[%clk 0:03:15.1]}
16... h6 {[%clk 0:03:17.6]} 17. Be3 {[%clk 0:03:12.7]} 17... Rhg8 {[%clk
0:03:12.9]} 18. Qe2 {[%clk 0:03:10.9]} 18... g5 {[%clk 0:03:11.1]} 19. Qc4
{[%clk 0:02:57.4]} 19... Qxc4 {[%clk 0:03:01.7]} 20. Bxc4 {[%clk 0:02:59.3]}
20... b5 {[%clk 0:03:00.7]} 21. Be2 {[%clk 0:02:56.4]} 21... Nd5 {[%clk
0:02:58.9]} 22. Bc1 {[%clk 0:02:57]} 22... Kc7 {[%clk 0:02:52.2]} 23. Bf3 {[%clk
0:02:55.5]} 23... Bc8 {[%clk 0:02:38.1]} 24. Rfe1 {[%clk 0:02:53.8]} 24... Bf6
{[%clk 0:02:34.9]} 25. Nb3 {[%clk 0:02:52.4]} 25... Bb7 {[%clk 0:02:15.4]} 26.
Nc5 {[%clk 0:02:52.3]} 26... Bc8 {[%clk 0:01:55.2]} 27. g3 {[%clk 0:02:17.7]}
27... Kb6 {[%clk 0:01:52.5]} 28. Bxd5 {[%clk 0:01:47.9]} 28... Rxd5 {[%clk
0:01:52.8]} 29. Be3 {[%clk 0:01:49.8]} 29... Kc6 {[%clk 0:01:42.7]} 30. Rxd5
{[%clk 0:01:46.2]} 30... Kxd5 {[%clk 0:01:43.7]} 31. Rd1+ {[%clk 0:01:40.7]}
31... Kc6 {[%clk 0:01:44.4]} 32. Nb3 {[%clk 0:01:38.8]} 32... Rd8 {[%clk
0:01:27.9]} 33. Rc1 {[%clk 0:00:56.2]} 33... Kd5 {[%clk 0:01:05]} 34. Kg2 {[%clk
0:00:45.1]} 34... Kc6 {[%clk 0:00:45.5]} 35. Kf3 {[%clk 0:00:42.1]} 35... Bb7
{[%clk 0:00:41.3]} 36. Na5+ {[%clk 0:00:38.2]} 36... Kc7+ {[%clk 0:00:42.2]} 37.
Nxb7 {[%clk 0:00:40.1]} 37... Kxb7 {[%clk 0:00:43.5]} 38. g4 {[%clk 0:00:38.1]}
38... Kc6 {[%clk 0:00:43.7]} 39. Ke2 {[%clk 0:00:34.6]} 39... h5 {[%clk
0:00:38.6]} 40. b3 {[%clk 0:00:29.8]} 40... hxg4 {[%clk 0:00:39.1]} 41. hxg4
{[%clk 0:00:31.7]} 41... Rh8 {[%clk 0:00:34.9]} 42. c4 {[%clk 0:00:32]} 42...
bxc4 {[%clk 0:00:31.9]} 43. Rxc4+ {[%clk 0:00:32.5]} 43... Kb7 {[%clk
0:00:29.3]} 44. Rb4+ {[%clk 0:00:31.3]} 44... Kc7 {[%clk 0:00:29.8]} 45. Ra4
{[%clk 0:00:25.4]} 45... Kb7 {[%clk 0:00:30.3]} 46. Ra5 {[%clk 0:00:25.9]} 46...
e5 {[%clk 0:00:17.8]} 47. Kf3 {[%clk 0:00:24.1]} 47... Rh4 {[%clk 0:00:12.6]}
48. Rd5 {[%clk 0:00:19]} 48... Kc6 {[%clk 0:00:12.8]} 49. Ra5 {[%clk 0:00:19]}
49... Kb7 {[%clk 0:00:12.4]} 50. Ke4 {[%clk 0:00:20.3]} 50... Bd8 {[%clk
0:00:08.5]} 51. Rd5 {[%clk 0:00:17.3]} 51... Kc8 {[%clk 0:00:07.3]} 52. Kf5
{[%clk 0:00:17.8]} 52... f6 {[%clk 0:00:08.6]} 53. Rd6 {[%clk 0:00:17.6]} 53...
a5 {[%clk 0:00:07.3]} 54. Rd5 {[%clk 0:00:15.4]} 54... Rh1 {[%clk 0:00:06.8]}
55. a4 {[%clk 0:00:15.5]} 55... Rb1 {[%clk 0:00:07]} 56. Rb5 {[%clk 0:00:17.4]}
56... Rb2 {[%clk 0:00:07.4]} 57. Ke6 {[%clk 0:00:18.1]} 57... Rb1 {[%clk
0:00:04.7]} 58. Kd6 {[%clk 0:00:17.7]} 58... Rd1+ {[%clk 0:00:05.8]} 59. Ke6
{[%clk 0:00:18.1]} 59... Rb1 {[%clk 0:00:06.3]} 60. Bc5 {[%clk 0:00:17.7]} 60...
Rc1 {[%clk 0:00:05.9]} 61. Bd6 {[%clk 0:00:17]} 61... Bc7 {[%clk 0:00:05.7]} 62.
Rc5 {[%clk 0:00:15.3]} 62... Rxc5 {[%clk 0:00:05.3]} 63. Bxc5 {[%clk 0:00:17.2]}
63... Bd8 {[%clk 0:00:02.9]} 64. f3 {[%clk 0:00:17.7]} 64... Kc7 {[%clk
0:00:03.2]} 65. Be7 {[%clk 0:00:14.6]} 65... Bxe7 {[%clk 0:00:04.4]} 66. Kxe7
{[%clk 0:00:16.5]} 66... f5 {[%clk 0:00:05.6]} 67. gxf5 {[%clk 0:00:18.3]} 67...
e4 {[%clk 0:00:07]} 68. fxe4 {[%clk 0:00:15.7]} 68... g4 {[%clk 0:00:07.6]} 69.
f6 {[%clk 0:00:17.6]} 69... g3 {[%clk 0:00:09.1]} 70. f7 {[%clk 0:00:19.5]}
70... g2 {[%clk 0:00:10.7]} 71. f8=Q {[%clk 0:00:21.4]} 71... g1=Q {[%clk
0:00:12.2]} 72. Qd8+ {[%clk 0:00:21.5]} 72... Kc6 {[%clk 0:00:12.4]} 73. Qd5+
{[%clk 0:00:19.2]} 73... Kb6 {[%clk 0:00:11.8]} 74. Qb5+ {[%clk 0:00:20.1]}
74... Kc7 {[%clk 0:00:12.9]} 75. Qxa5+ {[%clk 0:00:21.5]} 75... Kc6 {[%clk
0:00:14.2]} 76. Qa6+ {[%clk 0:00:21.7]} 76... Kc7 {[%clk 0:00:15.2]} 77. Qc4+
{[%clk 0:00:22.8]} 77... Kb7 {[%clk 0:00:15.7]} 78. Qd5+ {[%clk 0:00:22.7]}
78... Kc7 {[%clk 0:00:16.3]} 79. Qd6+ {[%clk 0:00:23.1]} 79... Kb7 {[%clk
0:00:17.5]} 80. e5 {[%clk 0:00:23.7]} 80... Qg5+ {[%clk 0:00:14.7]} 81. Ke8
{[%clk 0:00:24.5]} 81... Qg8+ {[%clk 0:00:15.1]} 82. Qf8 {[%clk 0:00:24.1]}
82... Qxb3 {[%clk 0:00:14.8]} 83. Qf7+ {[%clk 0:00:25.5]} 83... Qxf7+ {[%clk
0:00:06.6]} 84. Kxf7 {[%clk 0:00:27.4]} 84... Ka6 {[%clk 0:00:06.5]} 85. e6
{[%clk 0:00:29.3]} 85... Ka5 {[%clk 0:00:08.4]} 86. e7 {[%clk 0:00:30.1]} 86...
Kxa4 {[%clk 0:00:10.3]} 87. e8=Q+ {[%clk 0:00:32]} 1-0